bitfinex/quotes_BTCUSD_20250602
["timestamp","ask_amount","ask_price","bid_price","bid_amount"]
[1748855462373,0.38508911,104930.0,104920.0,0.21921353]
[1748855463005,0.41031909,104930.0,104920.0,0.21921353]
[1748855463547,0.41131909,104930.0,104920.0,0.21921353]
[1748855464570,0.38272952,104930.0,104920.0,0.2281163]
[1748855464787,0.37655913,104930.0,104920.0,0.2281163]
[1748855464993,0.39175913,104930.0,104920.0,0.2281163]
[1748855465196,0.35052943,104930.0,104920.0,0.22811746]
[1748855465332,0.36005904,104930.0,104920.0,0.22811746]
[1748855465835,0.35052943,104930.0,104920.0,0.22811746]
[1748855466036,0.36958874,104930.0,104920.0,0.22811746]
[1748855466261,0.36005895,104930.0,104920.0,0.21921353]
[1748855466413,0.36005904,104930.0,104920.0,0.22811853]
[1748855466635,0.36005904,104930.0,104920.0,0.21921353]
[1748855466842,0.001,104930.0,104920.0,0.22811853]
[1748855467043,0.001,104930.0,104920.0,0.54624297]
[1748855467262,0.001,104930.0,104920.0,0.5551476]
[1748855467464,0.02662934,104930.0,104920.0,0.23116813]
[1748855467664,0.0171,104930.0,104920.0,0.23116813]
[1748855467972,0.0171,104930.0,104920.0,0.23116836]
[1748855468172,0.0171,104930.0,104920.0,0.22811895]
[1748855468372,0.0171,104930.0,104920.0,0.23116834]
[1748855468610,0.0171,104930.0,104920.0,0.23116835]
[1748855468780,0.0171,104930.0,104920.0,0.22226292]
[1748855468981,0.0171,104930.0,104920.0,0.23116838]
[1748855469187,0.0171,104930.0,104920.0,0.23116832]
[1748855469388,0.0171,104930.0,104920.0,0.22226292]
[1748855469593,0.0171,104930.0,104920.0,0.23116922]
[1748855470002,0.03853621,104930.0,104920.0,0.23116928]
[1748855470305,0.03615886,104930.0,104920.0,0.22203422]
[1748855470634,0.05521836,104930.0,104920.0,0.22203422]
[1748855471014,0.03615895,104930.0,104920.0,0.22203422]
[1748855471203,0.04568874,104930.0,104920.0,0.22203422]
[1748855471930,0.66402659,104930.0,104920.0,0.21273249]
[1748855472129,0.4710459,104930.0,104920.0,0.22226292]
[1748855472332,0.45198603,104930.0,104920.0,0.23116876]
[1748855472520,0.04272961,104930.0,104920.0,0.22226295]
[1748855472723,0.04568874,104930.0,104920.0,0.22226295]
[1748855473139,0.04568874,104930.0,104920.0,0.2311688]
[1748855473287,0.01052943,104930.0,104920.0,0.22226295]
[1748855473455,0.02005904,104930.0,104920.0,0.22226295]
[1748855474371,0.02005904,104930.0,104920.0,0.23116924]
[1748855474571,0.02005904,104930.0,104920.0,0.22226295]
[1748855474798,0.02005904,104930.0,104920.0,0.2311693]
[1748855475228,0.01052943,104930.0,104920.0,0.23117105]
[1748855475375,0.02005913,104930.0,104920.0,0.23117105]
[1748855476210,0.02005913,104930.0,104920.0,0.2311711]
[1748855476412,0.02005904,104930.0,104920.0,0.2311711]
[1748855476612,0.02005904,104930.0,104920.0,0.231171]
[1748855477034,0.02005904,104930.0,104920.0,0.22226294]
[1748855477267,0.4197112,104930.0,104920.0,0.23117183]
[1748855477612,0.44464099,104930.0,104920.0,0.23117183]
[1748855477812,0.4446409,104930.0,104920.0,0.23117183]
[1748855478344,0.4446409,104930.0,104920.0,0.23117257]
[1748855478741,0.4446409,104930.0,104920.0,0.23117322]
[1748855478950,0.4351112,104930.0,104920.0,0.23117381]
[1748855479157,0.4351112,104930.0,104920.0,0.22164358]
[1748855479158,0.64477504,104930.0,104920.0,0.22164358]
[1748855479353,0.43511111,104930.0,104920.0,0.24132461]
[1748855479558,0.460341,104930.0,104920.0,0.2382752]
[1748855480120,0.0164,104930.0,104920.0,0.24718632]
[1748855480322,0.02592952,104930.0,104920.0,0.2471863]
[1748855480576,0.03545922,104930.0,104920.0,0.25023579]
[1748855480777,0.04498901,104930.0,104920.0,0.25023579]
[1748855481197,0.65292214,104930.0,104920.0,0.22164455]
[1748855481411,0.20015249,104920.0,104910.0,0.20065309]
[1748855481617,0.64043544,104920.0,104910.0,0.22276576]
[1748855481833,0.64043544,104920.0,104910.0,0.21971613]
[1748855482253,0.64996614,104920.0,104910.0,0.21971622]
[1748855482485,0.6499655,104920.0,104910.0,0.22171622]
[1748855482716,0.65949657,104920.0,104910.0,0.23162904]
[1748855483168,0.47840594,104920.0,104910.0,0.23224756]
[1748855483610,0.45934417,104920.0,104910.0,0.23224756]
[1748855483822,0.46887515,104920.0,104910.0,0.23224756]
[1748855484041,0.46887515,104920.0,104910.0,0.24116025]
[1748855484498,0.65949657,104920.0,104910.0,0.24116025]
[1748855484706,0.46887515,104920.0,104910.0,0.24116038]
[1748855484887,0.44028259,104920.0,104910.0,0.23224756]
[1748855485120,0.45934408,104920.0,104910.0,0.24116028]
[1748855485336,0.36542961,104930.0,104920.0,0.21921353]
[1748855485544,0.78364127,104930.0,104920.0,0.22812678]
[1748855485758,0.79317052,104930.0,104920.0,0.22812678]
[1748855485967,0.8027005,104930.0,104920.0,0.22812678]
[1748855486171,0.8027005,104930.0,104920.0,0.22812694]
[1748855486377,0.80270123,104930.0,104920.0,0.22812694]
[1748855486592,0.81820123,104930.0,104920.0,0.21921353]
[1748855486802,0.81920123,104930.0,104920.0,0.21921353]
[1748855487271,1.00980448,104930.0,104920.0,0.21921353]
[1748855487491,1.00027505,104930.0,104920.0,0.21921371]
[1748855487908,0.99074535,104930.0,104920.0,0.2096831]
[1748855488347,1.00027551,104930.0,104920.0,0.21921371]
[1748855488566,1.00027551,104930.0,104880.0,0.01006835]
[1748855488567,0.20974289,104890.0,104880.0,0.01006835]
[1748855488789,0.20974289,104890.0,104880.0,0.22936548]
[1748855488790,0.4403855,104890.0,104880.0,0.22936548]
[1748855488993,0.26000975,104890.0,104880.0,0.22936567]
[1748855489197,0.65012884,104890.0,104880.0,0.21029708]
[1748855489419,0.64095041,104890.0,104880.0,0.22875281]
[1748855489629,0.64095041,104890.0,104880.0,0.2198316]
[1748855489846,0.6314168,104890.0,104880.0,0.2208316]
[1748855490075,0.6319022,104890.0,104880.0,0.2208316]
[1748855490275,1.05822271,104890.0,104880.0,0.01106835]
[1748855491363,1.05822271,104890.0,104880.0,0.01306835]
[1748855491548,1.07276356,104890.0,104880.0,0.01306835]
[1748855491794,1.08058214,104890.0,104880.0,0.01206835]
[1748855492030,1.08058214,104890.0,104880.0,0.01006835]
[1748855492244,0.66603422,104890.0,104880.0,0.01006835]
[1748855492451,1.06604129,104890.0,104880.0,0.01006835]
[1748855495240,0.66603422,104890.0,104880.0,0.21029717]
[1748855495441,1.37676129,104890.0,104880.0,0.22875869]
[1748855495649,1.38629499,104890.0,104880.0,0.21983178]
[1748855496919,0.88489878,104890.0,104880.0,0.22936621]
[1748855497149,0.3831702,104890.0,104880.0,0.24843461]
[1748855497362,0.41177085,104890.0,104880.0,0.24843461]
[1748855497986,0.81177792,104890.0,104880.0,0.24843461]
[1748855498503,1.00245468,104890.0,104880.0,0.2484348]
[1748855498711,0.81177874,104890.0,104880.0,0.2484348]
[1748855498919,0.80224495,104890.0,104880.0,0.24843371]
[1748855499334,0.9893543,104890.0,104880.0,0.20076247]
[1748855499567,0.04987241,104860.0,104800.0,0.27046674]
[1748855499796,0.40954641,104820.0,104810.0,0.21941164]
[1748855500017,0.00953934,104820.0,104810.0,0.21941164]
[1748855500234,0.40954641,104820.0,104810.0,0.31645164]
[1748855500461,0.00953934,104820.0,104810.0,0.31645164]
[1748855500670,0.01907886,104820.0,104810.0,0.20701164]
[1748855500902,0.01907886,104820.0,104810.0,0.32487008]
[1748855501119,0.01907886,104820.0,104810.0,0.31599216]
[1748855501336,0.03557549,104840.0,104830.0,0.21940174]
[1748855501555,0.0004851,104840.0,104830.0,0.31884174]
[1748855501992,0.0004851,104840.0,104830.0,0.41469604]
[1748855502887,0.0014851,104840.0,104830.0,0.41469604]
[1748855503976,0.0014851,104840.0,104830.0,0.42969604]
[1748855504390,0.0014851,104840.0,104830.0,0.41469604]
[1748855505044,0.0014851,104840.0,104830.0,0.42357198]
[1748855505253,0.0014851,104840.0,104830.0,0.41469604]
[1748855505878,0.0014851,104840.0,104830.0,0.31984174]
[1748855506804,0.0014851,104840.0,104830.0,0.32871501]
[1748855507020,0.0014851,104840.0,104830.0,0.42456931]
[1748855507244,0.0014851,104840.0,104830.0,0.43986895]
[1748855507694,0.0014851,104840.0,104830.0,0.33942895]
[1748855507906,0.0014851,104840.0,104830.0,0.76687486]
[1748855508328,0.0014851,104840.0,104830.0,1.16688193]
[1748855508749,0.0014851,104840.0,104830.0,1.16688154]
[1748855508955,0.0004851,104840.0,104830.0,0.76687447]
[1748855509366,0.0004851,104840.0,104830.0,0.76787447]
[1748855509572,0.0004851,104840.0,104830.0,0.76787718]
[1748855509782,0.0004851,104840.0,104830.0,0.78441803]
[1748855509993,0.0004851,104840.0,104830.0,1.18747642]
[1748855510200,0.0004851,104840.0,104830.0,1.18747793]
[1748855510414,0.0004851,104840.0,104830.0,1.52747793]
[1748855510624,0.0004851,104840.0,104830.0,1.52747782]
[1748855511041,0.0004851,104840.0,104830.0,0.81675075]
[1748855511243,0.0004851,104840.0,104830.0,1.12760145]
[1748855511452,0.0004851,104840.0,104830.0,1.52760852]
[1748855511663,0.0004851,104840.0,104830.0,1.51568396]
[1748855511874,0.0004851,104840.0,104830.0,1.52456007]
[1748855512078,0.0004851,104840.0,104830.0,1.52455948]
[1748855512285,0.0004851,104840.0,104830.0,1.52455963]
[1748855512495,0.39363689,104880.0,104870.0,0.21931805]
[1748855512496,0.0190684,104880.0,104870.0,0.21931805]
[1748855512700,0.0190684,104880.0,104870.0,0.21946388]
[1748855512701,0.02144566,104880.0,104870.0,0.21946388]
[1748855513118,0.40238433,104880.0,104870.0,0.21946388]
[1748855513326,0.40000707,104880.0,104870.0,0.21946388]
[1748855513539,0.00953388,104880.0,104870.0,0.21946315]
[1748855513747,0.005,104880.0,104870.0,0.22046315]
[1748855514379,0.005,104880.0,104870.0,0.31631745]
[1748855514587,0.01053297,104890.0,104880.0,0.21929713]
[1748855514797,0.001,104890.0,104880.0,0.21929713]
[1748855515009,0.001,104890.0,104880.0,0.22818279]
[1748855515438,0.02006622,104890.0,104880.0,0.21929713]
[1748855515645,0.02959965,104890.0,104880.0,0.2281841]
[1748855515854,0.02006622,104890.0,104880.0,0.2281841]
[1748855516063,0.01653297,104890.0,104880.0,0.22920673]
[1748855516504,0.007,104890.0,104880.0,0.22920673]
[1748855516927,0.013,104890.0,104880.0,0.23020307]
[1748855517137,0.013,104890.0,104880.0,0.23020317]
[1748855517138,0.48274079,104890.0,104880.0,0.23020317]
[1748855517376,0.66388366,104890.0,104880.0,0.21113467]
[1748855517556,0.66388366,104890.0,104880.0,0.23020408]
[1748855517805,0.66388366,104890.0,104880.0,0.23020409]
[1748855518015,0.66388366,104890.0,104880.0,0.23020412]
[1748855518227,0.46367348,104890.0,104880.0,0.22129741]
[1748855518445,0.013,104890.0,104880.0,0.23083147]
[1748855518702,0.02253297,104890.0,104880.0,0.23973818]
[1748855519331,0.013,104890.0,104880.0,0.23973818]
[1748855519540,0.013,104890.0,104880.0,0.23973656]
[1748855519750,0.013,104890.0,104880.0,0.23973657]
[1748855519985,0.013,104890.0,104880.0,0.23973508]
[1748855520820,0.013,104890.0,104880.0,0.23083147]
[1748855521486,0.013,104890.0,104880.0,0.66932495]
[1748855521704,0.013,104890.0,104880.0,1.52642394]
[1748855521908,0.013,104890.0,104880.0,1.94724116]
[1748855522118,0.013,104890.0,104880.0,1.93834394]
[1748855522339,0.013,104890.0,104880.0,1.93634394]
[1748855522340,0.001,104890.0,104880.0,1.93634394]
[1748855522776,0.004,104890.0,104880.0,1.93634394]
[1748855522989,0.004,104890.0,104880.0,1.5452334]
[1748855523201,0.001,104890.0,104880.0,1.53633687]
[1748855523337,0.001,104890.0,104880.0,1.54723333]
[1748855523557,0.001,104890.0,104880.0,1.54723336]
[1748855523765,0.004,104890.0,104880.0,1.54723336]
[1748855524007,0.004,104890.0,104880.0,1.55612985]
[1748855524216,0.001,104890.0,104880.0,1.54723336]
[1748855524386,0.001,104890.0,104880.0,1.95813686]
[1748855524928,0.001,104890.0,104880.0,1.94924043]
[1748855525146,0.001,104890.0,104880.0,1.9550866]
[1748855525336,0.001,104890.0,104880.0,1.55507953]
[1748855526312,0.001,104890.0,104880.0,1.54423549]
[1748855526510,0.001,104890.0,104880.0,1.95591549]
[1748855526737,0.001,104890.0,104880.0,1.95590897]
[1748855526911,0.001,104890.0,104880.0,1.95590717]
[1748855527118,0.001,104890.0,104880.0,1.94703018]
[1748855527517,0.001,104890.0,104880.0,1.95703018]
[1748855527699,0.001,104890.0,104880.0,1.96590677]
[1748855527903,0.001,104890.0,104880.0,2.24963018]
[1748855528118,0.001,104890.0,104880.0,2.69963725]
[1748855528938,0.001,104890.0,104880.0,2.70851111]
[1748855529149,0.001,104890.0,104880.0,2.69963725]
[1748855529948,0.001,104890.0,104880.0,2.73151412]
[1748855530332,0.001,104890.0,104880.0,2.33082705]
[1748855531795,0.001,104890.0,104880.0,2.33032705]
[1748855532420,0.001,104890.0,104880.0,2.85214005]
[1748855537171,0.001,104890.0,104880.0,2.85698627]
[1748855537567,0.001,104890.0,104880.0,2.8521401]
[1748855537999,0.001,104890.0,104880.0,2.84858886]
[1748855539567,0.001,104890.0,104880.0,2.53798886]
[1748855539924,0.001,104890.0,104880.0,2.84826886]
[1748855542512,0.43090707,104940.0,104930.0,0.21919263]
[1748855542862,0.0309,104940.0,104930.0,0.21919263]
[1748855543654,0.0309,104940.0,104930.0,0.21933846]
[1748855544056,0.0439,104940.0,104930.0,0.22133846]
[1748855544873,0.43090707,104940.0,104930.0,0.21933846]
[1748855545074,0.43090707,104940.0,104930.0,0.00114583]
[1748855545075,0.49996123,104940.0,104930.0,0.00114583]
[1748855545287,1.13140062,104940.0,104930.0,0.00114583]
[1748855545493,1.13140062,104940.0,104910.0,0.2222491]
[1748855545494,0.01906113,104920.0,104910.0,0.2222491]
[1748855545695,0.4409375,104920.0,104910.0,0.23775497]
[1748855545918,0.4409375,104920.0,104910.0,0.22887713]
[1748855546140,0.45999908,104920.0,104910.0,0.22887713]
[1748855546339,0.6506205,104920.0,104910.0,0.20031724]
[1748855546538,1.09782633,104920.0,104910.0,0.00014586]
[1748855546879,1.09782633,104920.0,104910.0,0.22891225]
[1748855546880,0.45246838,104920.0,104910.0,0.22891225]
[1748855547062,0.65362078,104920.0,104910.0,0.21938091]
[1748855547461,0.66015112,104920.0,104910.0,0.2098493]
[1748855547671,0.65062078,104920.0,104910.0,0.2098493]
[1748855547890,0.47652933,104920.0,104910.0,0.22891225]
[1748855548610,0.48606031,104920.0,104910.0,0.22891225]
[1748855549039,0.46699845,104920.0,104910.0,0.22891225]
[1748855549259,0.47652933,104920.0,104910.0,0.22891225]
[1748855549464,0.0384,104920.0,104910.0,0.23780248]
[1748855549673,0.0384,104920.0,104910.0,0.22891225]
[1748855549877,0.05746077,104920.0,104910.0,0.22891225]
[1748855550053,0.05746077,104920.0,104910.0,0.23781384]
[1748855550277,0.05746068,104920.0,104910.0,0.23781384]
[1748855550796,0.04793025,104920.0,104910.0,0.23781384]
[1748855550996,0.04793043,104920.0,104910.0,0.23781384]
[1748855551508,0.04793034,104920.0,104910.0,0.24672745]
[1748855551706,0.07652235,104920.0,104910.0,0.23781384]
[1748855551905,0.47652933,104920.0,104910.0,0.23781384]
[1748855552165,0.47652933,104920.0,104910.0,0.24977508]
[1748855552166,0.47652924,104920.0,104910.0,0.24977508]
[1748855552380,0.47652924,104920.0,104910.0,0.24086352]
[1748855552952,0.48606012,104920.0,104910.0,0.24086352]
[1748855553123,0.48606012,104920.0,104910.0,0.23781384]
[1748855553325,0.48606012,104920.0,104910.0,0.24672541]
[1748855553523,0.65762105,104920.0,104910.0,0.02749099]
[1748855553749,0.65762105,104920.0,104910.0,0.21813058]
[1748855553750,0.64809035,104920.0,104910.0,0.21813058]
[1748855554205,0.64809035,104920.0,104910.0,0.20921901]
[1748855554545,0.64809035,104920.0,104910.0,0.22766314]
[1748855554745,0.64809035,104920.0,104910.0,0.21875089]
[1748855555172,0.64809035,104920.0,104910.0,0.0179596]
[1748855555407,1.84728218,104920.0,104910.0,0.0179596]
[1748855555557,1.84728218,104920.0,104910.0,0.00904745]
[1748855555769,1.80555172,104920.0,104910.0,0.00904745]
[1748855556003,1.87555172,104920.0,104910.0,0.00904745]
[1748855559984,1.54482465,104920.0,104910.0,0.00904745]
[1748855560199,1.94483172,104920.0,104910.0,0.00904745]
[1748855561066,1.95937257,104920.0,104910.0,0.00904745]
[1748855561303,0.20974289,104890.0,104880.0,0.00889649]
[1748855561514,0.20974289,104890.0,104880.0,0.00904079]
[1748855561515,0.54974289,104890.0,104880.0,0.00904079]
[1748855561747,1.04560426,104890.0,104880.0,0.00904079]
[1748855561968,0.64559719,104890.0,104880.0,0.00904079]
[1748855562183,1.04560426,104890.0,104880.0,0.00904079]
[1748855562808,1.07486715,104890.0,104880.0,0.00904079]
[1748855563105,1.10706715,104890.0,104880.0,0.00904079]
[1748855563334,0.70706008,104890.0,104880.0,0.00904079]
[1748855563536,1.11517778,104890.0,104880.0,0.00904079]
[1748855565798,0.71517071,104890.0,104880.0,0.00904079]
[1748855566006,1.11517778,104890.0,104880.0,0.00904079]
[1748855566210,0.71517071,104890.0,104880.0,0.00904079]
[1748855566426,1.11517778,104890.0,104880.0,0.00904079]
[1748855567031,1.54693778,104890.0,104880.0,0.00904079]
[1748855567463,1.58970535,104890.0,104880.0,0.00904079]
[1748855567684,6.21147156,104890.0,104880.0,0.00904079]
[1748855567875,6.21147156,104890.0,104850.0,0.001]
[1748855567876,0.5498029,104860.0,104850.0,0.001]
[1748855568085,0.6777572,104860.0,104850.0,0.001]
[1748855568289,1.07776427,104860.0,104850.0,0.001]
[1748855568721,0.6777572,104860.0,104850.0,0.19174868]
[1748855568939,0.6777572,104860.0,104850.0,0.20128593]
[1748855569151,0.74954286,104860.0,104850.0,0.22135979]
[1748855569417,0.42474213,104870.0,104860.0,0.21933896]
[1748855569633,0.34953479,104870.0,104860.0,0.21933896]
[1748855569843,0.63046666,104880.0,104870.0,0.20978308]
[1748855569844,0.38926804,104880.0,104870.0,0.20978308]
[1748855570046,0.38926804,104880.0,104870.0,0.19071231]
[1748855570047,1.09489257,104880.0,104870.0,0.19071231]
[1748855570255,1.08535869,104880.0,104870.0,0.20024783]
[1748855570461,0.48512289,104880.0,104870.0,0.20024783]
[1748855570711,1.0948933,104880.0,104870.0,0.20978308]
[1748855570930,1.15535914,104880.0,104870.0,0.20024783]
[1748855571136,1.15535914,104880.0,104870.0,0.20978326]
[1748855571349,1.14582471,104880.0,104870.0,0.20978326]
[1748855571728,0.74581764,104880.0,104870.0,0.2193186]
[1748855571953,1.14582471,104880.0,104870.0,0.2193186]
[1748855572137,1.13629019,104880.0,104870.0,0.21078326]
[1748855572562,1.13629019,104880.0,104870.0,0.21178326]
[1748855572757,0.72674842,104880.0,104870.0,0.20224783]
[1748855572911,1.12675549,104880.0,104870.0,0.20224783]
[1748855573725,1.21926671,104880.0,104870.0,0.002]
[1748855573941,1.12675549,104880.0,104870.0,0.002]
[1748855574144,1.12675549,104880.0,104870.0,0.01153561]
[1748855574349,1.12675549,104880.0,104870.0,0.002]
[1748855574793,0.72674842,104880.0,104870.0,0.20224792]
[1748855575002,1.12675549,104880.0,104870.0,0.20224792]
[1748855575526,1.05675549,104880.0,104870.0,0.01153561]
[1748855576418,1.05675549,104880.0,104870.0,0.002]
[1748855577153,0.65674842,104880.0,104870.0,0.002]
[1748855577364,1.12675549,104880.0,104870.0,0.002]
[1748855579391,0.72674842,104880.0,104870.0,0.002]
[1748855579603,1.52704872,104880.0,104870.0,0.002]
[1748855579983,1.54158957,104880.0,104870.0,0.002]
[1748855581456,0.2421029,104860.0,104850.0,0.002]
[1748855581662,0.73810735,104860.0,104850.0,0.002]
[1748855581864,0.73810735,104860.0,104850.0,0.01089281]
[1748855582051,0.73810735,104860.0,104850.0,0.01089265]
[1748855582693,0.73810735,104860.0,104850.0,0.21117866]
[1748855582920,0.72857128,104860.0,104850.0,0.21117866]
[1748855583135,0.69627128,104860.0,104850.0,0.21117866]
[1748855583350,0.30378479,104860.0,104850.0,0.01489264]
[1748855583565,0.70393494,104860.0,104850.0,0.01489264]
[1748855583765,0.70393494,104860.0,104850.0,0.21917875]
[1748855583977,0.30378479,104860.0,104850.0,0.21917875]
[1748855584355,0.68773494,104860.0,104850.0,0.21917875]
[1748855584560,0.68773494,104860.0,104850.0,0.22871609]
[1748855584772,0.68773494,104860.0,104850.0,0.22871289]
[1748855584943,0.28758479,104860.0,104850.0,0.21917555]
[1748855585140,0.68773494,104860.0,104850.0,0.22871289]
[1748855585501,0.28758479,104860.0,104850.0,0.22871289]
[1748855585707,0.68773494,104860.0,104850.0,0.22871289]
[1748855585939,0.68773494,104860.0,104850.0,0.22871898]
[1748855586379,0.41068622,104860.0,104850.0,0.23889731]
[1748855586609,0.001,104860.0,104850.0,0.26329241]
[1748855586836,0.001,104860.0,104850.0,0.61121508]
[1748855587052,0.001,104860.0,104850.0,0.70706938]
[1748855587297,0.001,104860.0,104850.0,0.70707036]
[1748855587527,0.001,104860.0,104850.0,0.70707045]
[1748855588165,0.001,104860.0,104850.0,0.7070705]
[1748855588377,0.001,104860.0,104850.0,0.70707186]
[1748855588652,0.001,104860.0,104850.0,0.70707188]
[1748855588998,0.001,104860.0,104850.0,0.81859664]
[1748855589577,0.001,104860.0,104850.0,0.81859661]
[1748855589704,0.001,104860.0,104850.0,0.81859642]
[1748855590562,0.001,104860.0,104850.0,0.81860466]
[1748855590775,0.001,104860.0,104850.0,0.81860467]
[1748855590989,0.001,104860.0,104850.0,0.80985161]
[1748855591208,0.001,104860.0,104850.0,0.81876466]
[1748855592558,0.001,104860.0,104850.0,0.48568857]
[1748855592789,0.001,104860.0,104850.0,0.82208878]
[1748855593224,0.001,104860.0,104850.0,0.82208897]
[1748855593437,0.001,104860.0,104850.0,0.82208922]
[1748855593645,0.001,104860.0,104850.0,0.82208915]
[1748855593877,0.001,104860.0,104850.0,0.82168915]
[1748855594286,0.001,104860.0,104850.0,0.37416958]
[1748855594507,0.001,104860.0,104850.0,0.70101161]
[1748855595343,0.001,104860.0,104850.0,0.70993015]
[1748855595549,0.001,104860.0,104850.0,0.70101161]
[1748855596387,0.001,104860.0,104850.0,0.70049161]
[1748855598276,0.001,104860.0,104850.0,0.37416998]
[1748855598489,0.001,104860.0,104850.0,0.34366998]
[1748855598718,0.001,104860.0,104850.0,0.34367016]
[1748855598925,0.001,104860.0,104850.0,0.35997016]
[1748855599135,0.001,104860.0,104850.0,0.71781016]
[1748855599340,0.001,104860.0,104850.0,0.7178101]
[1748855599754,0.001,104860.0,104850.0,0.71781017]
[1748855600179,0.001,104860.0,104850.0,0.71781008]
[1748855600571,0.001,104860.0,104850.0,0.71781025]
[1748855600789,0.001,104860.0,104850.0,0.70889161]
[1748855601202,0.001,104860.0,104850.0,0.71781025]
[1748855602663,0.001,104860.0,104850.0,0.71781045]
[1748855603878,0.001,104860.0,104850.0,0.71781038]
[1748855604089,0.001,104860.0,104850.0,0.71529038]
[1748855604407,0.001,104860.0,104850.0,0.70537161]
[1748855604610,0.001,104860.0,104850.0,0.71429028]
[1748855604787,0.001,104860.0,104850.0,0.71429047]
[1748855605184,0.001,104860.0,104850.0,0.71429016]
[1748855605995,0.001,104860.0,104850.0,0.71429018]
[1748855606175,0.001,104860.0,104850.0,0.71429004]
[1748855606442,0.001,104860.0,104850.0,0.71429026]
[1748855607669,0.001,104860.0,104850.0,0.71428992]
[1748855607870,0.001,104860.0,104850.0,0.71429]
[1748855608545,0.001,104860.0,104850.0,0.71428977]
[1748855609183,0.001,104860.0,104850.0,1.00688968]
[1748855610368,0.001,104860.0,104850.0,1.00688959]
[1748855611131,0.001,104860.0,104850.0,0.6666507]
[1748855611336,0.001,104860.0,104850.0,0.96371161]
[1748855611528,0.001,104860.0,104850.0,1.0881107]
[1748855612302,0.001,104860.0,104850.0,1.08811105]
[1748855613024,0.001,104860.0,104850.0,1.08811102]
[1748855613869,0.001,104860.0,104850.0,1.10391102]
[1748855614267,0.001,104860.0,104850.0,1.12031499]
[1748855615767,0.001,104860.0,104850.0,1.12031913]
[1748855616384,0.001,104860.0,104850.0,1.21894176]
[1748855616624,0.001,104860.0,104850.0,1.18226797]
[1748855616827,0.001,104860.0,104850.0,1.57348261]
[1748855617029,0.001,104860.0,104850.0,1.16772626]
[1748855617201,0.001,104860.0,104850.0,1.56787641]
[1748855617414,0.001,104860.0,104850.0,1.55894176]
[1748855617655,0.001,104860.0,104850.0,1.16772622]
[1748855617869,0.001,104860.0,104850.0,1.56787637]
[1748855618617,0.001,104860.0,104850.0,1.15879161]
[1748855618820,0.001,104860.0,104850.0,1.56786833]
[1748855619232,0.001,104860.0,104850.0,1.56786493]
[1748855619713,0.001,104860.0,104850.0,1.55894176]
[1748855619882,0.001,104860.0,104850.0,1.56786493]
[1748855620524,0.001,104860.0,104850.0,1.56786448]
[1748855620928,0.001,104860.0,104850.0,1.55894176]
[1748855621120,0.001,104860.0,104850.0,1.56786447]
[1748855621349,0.001,104860.0,104850.0,1.55894176]
[1748855621990,0.001,104860.0,104850.0,1.56786225]
[1748855622605,0.001,104860.0,104850.0,1.5824031]
[1748855622864,0.001,104860.0,104850.0,1.58240232]
[1748855623075,0.001,104860.0,104850.0,1.98255247]
[1748855623284,0.00014559,104890.0,104880.0,0.21929713]
[1748855623495,0.00014559,104890.0,104880.0,0.76543143]
[1748855623723,0.00014559,104890.0,104880.0,0.77434459]
[1748855624592,0.00114559,104890.0,104880.0,0.77434435]
[1748855625025,0.00214559,104890.0,104880.0,0.78994432]
[1748855625208,0.00214559,104890.0,104880.0,0.78994039]
[1748855625644,0.00214559,104890.0,104880.0,0.78994038]
[1748855625818,0.00214559,104890.0,104880.0,0.77434038]
[1748855626180,0.00214559,104890.0,104880.0,0.81303146]
[1748855626386,0.00214559,104890.0,104880.0,0.81303128]
[1748855627219,0.00214559,104890.0,104880.0,0.81302737]
[1748855627414,0.00214559,104890.0,104880.0,0.80412251]
[1748855627619,0.00214559,104890.0,104880.0,0.81302737]
[1748855628031,0.00214559,104890.0,104880.0,1.21317752]
[1748855628230,0.00214559,104890.0,104880.0,1.21317681]
[1748855628476,0.00214559,104890.0,104880.0,1.21317169]
[1748855628675,0.00214559,104890.0,104880.0,1.20351266]
[1748855628810,0.00114559,104890.0,104880.0,1.20351266]
[1748855629016,0.00114559,104890.0,104880.0,1.21805351]
[1748855629216,0.00014559,104890.0,104880.0,1.21805351]
[1748855629485,0.00014559,104890.0,104880.0,1.21905351]
[1748855629987,0.00014559,104890.0,104880.0,1.21805351]
[1748855630191,0.00014559,104890.0,104880.0,1.21905351]
[1748855630721,0.00014559,104890.0,104880.0,1.22005351]
[1748855630922,0.00014559,104890.0,104880.0,1.22205351]
[1748855631129,0.00014559,104890.0,104880.0,0.79212251]
[1748855631306,0.00014559,104890.0,104880.0,0.78591713]
[1748855632089,0.00014559,104890.0,104880.0,0.81631713]
[1748855632487,0.00014559,104890.0,104880.0,1.21646373]
[1748855632931,0.00014559,104890.0,104880.0,1.20757266]
[1748855633131,0.00014559,104890.0,104880.0,1.21646371]
[1748855633331,0.00014559,104890.0,104880.0,1.21646368]
[1748855633746,0.00014559,104890.0,104880.0,1.23100453]
[1748855633947,0.00014559,104890.0,104880.0,1.23100451]
[1748855634141,0.00014559,104890.0,104880.0,1.22211351]
[1748855634357,0.00014559,104890.0,104880.0,1.56211351]
[1748855636905,0.00014559,104890.0,104880.0,1.85471351]
[1748855637088,0.00014559,104890.0,104880.0,1.56211351]
[1748855637766,0.00014559,104890.0,104880.0,2.25486366]
[1748855638018,0.00014559,104890.0,104880.0,1.85471351]
[1748855638408,0.00014559,104890.0,104880.0,1.40543351]
[1748855638617,0.00014559,104890.0,104880.0,1.85307351]
[1748855639281,0.00014559,104890.0,104880.0,1.00528336]
[1748855639500,0.00014559,104890.0,104880.0,1.85271351]
[1748855639701,0.00014559,104890.0,104880.0,1.88133251]
[1748855640713,0.00014559,104890.0,104880.0,1.43405251]
[1748855640941,0.00014559,104890.0,104880.0,1.88077251]
[1748855642371,0.00014559,104890.0,104880.0,1.08980336]
[1748855642585,0.00014559,104890.0,104880.0,1.07526251]
[1748855642806,0.00014559,104890.0,104880.0,0.95175143]
[1748855642997,0.43169574,104890.0,104880.0,0.22329713]
[1748855643194,0.45076233,104890.0,104880.0,0.22329713]
[1748855643434,0.43169574,104890.0,104880.0,0.22329713]
[1748855643584,0.43169574,104890.0,104880.0,0.23218862]
[1748855643797,0.44122881,104890.0,104880.0,0.23218862]
[1748855643995,0.04107866,104890.0,104880.0,0.22329713]
[1748855644170,0.04107866,104890.0,104880.0,0.23218863]
[1748855644370,0.04107856,104890.0,104880.0,0.23218863]
[1748855644829,0.05298898,104890.0,104880.0,0.23218863]
[1748855644973,0.04345582,104890.0,104880.0,0.23218863]
[1748855645159,0.05298898,104890.0,104880.0,0.23218863]
[1748855646445,0.03154559,104890.0,104880.0,0.23220262]
[1748855646687,0.03154559,104890.0,104880.0,0.23220257]